bitfinex/quotes_ETHUSD_20250422
["timestamp","ask_amount","ask_price","bid_price","bid_amount"]
[1745312001882,6.98416131,1624.6,1624.5,3.0]
[1745312002517,6.15574022,1624.5,1624.4,6.44424957]
[1745312004623,6.15536131,1624.6,1624.5,0.55]
[1745312004827,6.15536131,1624.6,1624.5,1.24942496]
[1745312004986,6.15536131,1624.6,1624.5,0.55]
[1745312005429,6.15536131,1624.6,1624.5,0.67506266]
[1745312008527,6.15536131,1624.6,1624.5,0.12506266]
[1745312011326,6.15536131,1624.6,1624.5,0.67506266]
[1745312013808,6.15513047,1624.7,1624.5,3.67506266]
[1745312014015,6.15513047,1624.7,1624.6,3.44424957]
[1745312014406,6.15536131,1624.6,1624.5,3.0]
[1745312020361,6.15536131,1624.6,1624.5,3.12421316]
[1745312020834,6.98256131,1624.6,1624.5,3.12421316]
[1745312021873,6.98256131,1624.6,1624.5,0.12421316]
[1745312031358,6.15513047,1624.7,1624.5,0.67421316]
[1745312031558,6.15513047,1624.7,1624.6,3.44424957]
[1745312031796,6.15513047,1624.7,1624.6,3.57109772]
[1745312035270,8.8661205,1624.7,1624.6,0.12684815]
[1745312040000,8.8661205,1624.7,1624.3,3.44424957]
[1745312040001,6.15611918,1624.4,1624.3,3.44424957]
[1745312040407,6.15611918,1624.4,1624.1,3.0]
[1745312040608,6.15705367,1624.2,1624.1,3.44424957]
[1745312040807,6.15705367,1624.2,1624.1,6.44424957]
[1745312041013,6.15705367,1624.2,1624.1,8.49937453]
[1745312041186,6.15705367,1624.2,1624.1,6.51589096]
[1745312041388,6.15667561,1624.3,1624.1,6.51589096]
[1745312041581,6.15631191,1624.4,1624.2,0.55]
[1745312041786,6.15631191,1624.4,1624.3,3.44424957]
[1745312041989,6.15631191,1624.4,1624.3,6.44424957]
[1745312042183,6.15631191,1624.4,1624.3,7.14367453]
[1745312042388,6.15631191,1624.4,1624.3,8.52597453]
[1745312044682,6.15589672,1624.5,1624.4,0.55]
[1745312045103,6.15589672,1624.5,1624.4,3.55]
[1745312046720,6.15589672,1624.5,1624.4,9.334]
[1745312049402,6.15589672,1624.5,1624.4,10.76499745]
[1745312049718,6.15589672,1624.5,1624.4,9.334]
[1745312056820,6.15589672,1624.5,1624.4,12.22824957]
[1745312058114,6.15552298,1624.6,1624.4,12.22824957]
[1745312058312,0.7719,1624.7,1624.5,1.3425]
[1745312058313,6.15519424,1624.7,1624.5,1.3425]
[1745312058625,6.15519424,1624.7,1624.6,3.44424957]
[1745312062340,6.15519424,1624.7,1624.6,3.92292453]
[1745312063412,6.15519424,1624.7,1624.6,4.37413278]
[1745312064370,6.15519424,1624.7,1624.6,6.89545782]
[1745312065345,6.15519424,1624.7,1624.6,4.96474347]
[1745312067048,6.95539424,1624.7,1624.6,4.96474347]
[1745312068644,6.15519424,1624.7,1624.6,4.96474347]
[1745312070416,6.15519424,1624.7,1624.6,10.73774347]
[1745312078994,6.15478525,1624.8,1624.6,11.50644347]
[1745312079267,6.15445304,1624.9,1624.7,0.7687]
[1745312079268,12.30896213,1624.9,1624.7,0.7687]
[1745312079559,6.15445304,1624.9,1624.8,1.51353522]
[1745312080359,6.15366424,1625.1,1624.8,2.26553522]
[1745312080562,6.15362155,1625.1,1625.0,6.02707044]
[1745312080939,6.15362155,1625.1,1625.0,11.80007044]
[1745312081825,6.15362155,1625.1,1625.0,10.28653522]
[1745312084160,6.15362155,1625.1,1625.0,11.80007044]
[1745312085132,6.15362155,1625.1,1625.0,10.28653522]
[1745312085651,6.15362155,1625.1,1625.0,11.80007044]
[1745312086664,6.15325818,1625.2,1625.0,12.35007044]
[1745312086842,6.15325818,1625.2,1625.1,1.51353522]
[1745312088863,45.60040023,1625.3,1625.1,1.51353522]
[1745312089165,6.15308885,1625.2,1625.1,2.06353522]
[1745312089365,6.15308885,1625.2,1625.1,3.8251502]
[1745312091975,6.15308885,1625.2,1625.1,1.98514316]
[1745312100771,6.15308885,1625.2,1625.1,4.98514316]
[1745312104564,6.15308885,1625.2,1625.1,10.74614316]
[1745312106004,33.294457,1625.3,1625.2,3.55]
[1745312106204,33.294457,1625.3,1625.2,7.38687044]
[1745312106506,33.294457,1625.3,1625.2,9.36414133]
[1745312107103,33.294457,1625.3,1625.2,7.04080611]
[1745312107104,39.44716726,1625.3,1625.2,7.04080611]
[1745312108617,39.44716726,1625.3,1625.2,5.06353522]
[1745312110708,33.294457,1625.3,1625.2,5.06353522]
[1745312113475,33.294457,1625.3,1625.2,11.21662407]
[1745312113877,33.294457,1625.3,1625.2,12.03252407]
[1745312114618,8.57990826,1625.3,1625.2,13.60758317]
[1745312114777,8.57990826,1625.3,1625.2,16.14540334]
[1745312114987,5.50733406,1625.3,1625.2,16.14540334]
[1745312117232,6.15121574,1625.7,1625.5,0.55]
[1745312117396,6.15121574,1625.7,1625.6,10.26253522]
[1745312117922,6.91212674,1625.8,1625.6,10.26253522]
[1745312118122,6.1511964,1625.7,1625.6,10.26253522]
[1745312118620,6.91212674,1625.8,1625.6,10.26253522]
[1745312119916,13.06321436,1625.8,1625.6,10.26253522]
[1745312120121,6.91212674,1625.8,1625.6,10.26253522]
[1745312122921,13.06321727,1625.8,1625.6,10.26253522]
[1745312123122,6.91212674,1625.8,1625.6,10.26253522]
[1745312123325,6.1511964,1625.7,1625.6,10.26253522]
[1745312123787,6.91212674,1625.8,1625.6,10.26253522]
[1745312124753,6.15066155,1625.9,1625.7,1.51353522]
[1745312124926,6.93486155,1625.9,1625.8,1.51353522]
[1745312126422,8.85839706,1625.9,1625.8,1.51353522]
[1745312129948,6.1511543,1625.8,1625.7,1.51353522]
[1745312136659,6.1511543,1625.8,1625.6,9.21287429]
[1745312136660,0.7842,1625.7,1625.6,6.21287429]
[1745312136860,6.9353964,1625.7,1625.6,6.21287429]
[1745312137216,8.24405147,1625.7,1625.6,6.21287429]
[1745312137554,8.24405147,1625.7,1625.6,5.749]
[1745312139951,6.15195324,1625.5,1625.4,4.51353522]
[1745312141927,6.15233173,1625.4,1625.3,7.26153522]
[1745312152678,6.15233173,1625.4,1625.3,5.748]
[1745312152883,8.90525347,1625.4,1625.3,5.748]
[1745312153079,8.90525347,1625.4,1625.1,4.96367805]
[1745312153080,6.15308885,1625.2,1625.1,4.96367805]
[1745312153581,6.15308885,1625.2,1625.1,1.51353522]
[1745312153941,6.15346747,1625.1,1625.0,7.25253522]
[1745312156090,6.15346747,1625.1,1625.0,7.7245316]
[1745312156388,6.15346747,1625.1,1625.0,7.25253522]
[1745312157090,6.15308885,1625.2,1625.0,10.04132396]
[1745312157254,6.15308885,1625.2,1625.1,1.51353522]
[1745312157450,6.15289815,1625.3,1625.1,1.51353522]
[1745312157789,6.15289815,1625.3,1625.2,1.51353522]
[1745312161566,6.92959815,1625.3,1625.2,1.51353522]
[1745312163164,6.15326724,1625.2,1625.1,1.51353522]
[1745312165493,6.15346747,1625.1,1625.0,10.71680819]
[1745312166776,6.15346747,1625.1,1625.0,7.25253522]
[1745312169898,6.15346747,1625.1,1625.0,5.739]
[1745312170098,6.93126747,1625.1,1625.0,7.25253522]
[1745312173222,6.93126747,1625.1,1625.0,5.739]
[1745312173509,6.15460364,1624.8,1624.7,5.74]
[1745312173685,6.15460364,1624.8,1624.7,7.25353522]
[1745312174276,6.15460364,1624.8,1624.7,10.25353522]
[1745312175305,6.15404357,1625.0,1624.8,3.0]
[1745312175474,6.15404357,1625.0,1624.9,1.51353522]
[1745312177302,12.30820297,1625.0,1624.8,6.89678834]
[1745312177502,12.30820297,1625.0,1624.8,8.29440717]
[1745312179078,6.15422487,1624.9,1624.8,8.84440717]
[1745312183622,6.15404357,1625.0,1624.8,8.84440717]
[1745312183932,12.30817959,1625.0,1624.8,8.84440717]
[1745312184231,6.15422487,1624.9,1624.8,8.84440717]
[1745312186120,6.15422487,1624.9,1624.8,14.57440717]
[1745312187942,6.15404357,1625.0,1624.8,14.57440717]
[1745312188231,6.15380474,1625.1,1625.0,0.55]
[1745312188391,6.15380474,1625.1,1625.0,3.99247619]
[1745312188788,6.15380474,1625.1,1625.0,6.99247619]
[1745312190095,6.153268,1625.2,1625.1,3.55]
[1745312190289,0.8275,1625.4,1625.2,0.55]
[1745312190290,6.15253773,1625.4,1625.2,0.55]
[1745312190530,6.15253773,1625.4,1625.3,3.44247619]
[1745312190717,6.15253773,1625.4,1625.3,6.44247619]
[1745312191806,6.15253773,1625.4,1625.3,6.90867034]
[1745312198447,6.15253773,1625.4,1625.2,5.73]
[1745312198606,6.15271026,1625.3,1625.2,5.73]
[1745312198942,6.98021026,1625.3,1625.2,5.73]
[1745312199917,6.15346747,1625.1,1625.0,12.17147619]
[1745312200202,6.15326513,1625.2,1625.0,12.72147619]
[1745312200413,12.30667857,1625.2,1625.0,12.72147619]
[1745312201031,6.15326513,1625.2,1625.0,12.72147619]
[1745312203653,6.15326513,1625.2,1625.0,14.81062381]
[1745312203810,6.15310012,1625.2,1625.0,14.81062381]
[1745312204433,0.8001,1625.4,1625.1,3.55]
[1745312204434,6.15236758,1625.4,1625.1,3.55]
[1745312204747,6.15234389,1625.4,1625.2,4.25947619]
[1745312204947,6.15204088,1625.5,1625.3,0.55]
[1745312207147,13.10375362,1625.6,1625.3,0.55]
[1745312207313,6.15195609,1625.5,1625.3,0.55]
[1745312207514,6.95191135,1625.6,1625.3,1.03094762]
[1745312207715,13.10379406,1625.6,1625.3,1.03094762]
[1745312208032,12.23099005,1625.8,1625.5,0.55]
[1745312208233,6.95075553,1625.9,1625.6,3.44247619]
[1745312208433,6.95075553,1625.9,1625.6,4.25947619]
[1745312208818,13.10148748,1625.9,1625.6,5.35561337]
[1745312209049,6.95075553,1625.9,1625.6,4.25947619]
[1745312209615,6.15065553,1625.9,1625.8,3.44247619]
[1745312211353,6.15065553,1625.9,1625.8,3.90786722]
[1745312213754,6.1511964,1625.7,1625.6,6.99247619]
[1745312213956,6.1511964,1625.7,1625.6,6.44247619]
[1745312214880,6.95092508,1625.8,1625.6,6.99247619]
[1745312215423,6.15082508,1625.8,1625.6,13.40972381]
[1745312220457,6.15061022,1625.9,1625.7,0.55]
[1745312220660,6.15061022,1625.9,1625.8,3.99247619]
[1745312222062,6.15061022,1625.9,1625.8,4.45488448]
[1745312225664,0.7647,1626.1,1625.9,0.55]
[1745312225831,6.14968752,1626.1,1626.0,3.44247619]
[1745312227873,6.91438752,1626.1,1626.0,3.44247619]
[1745312234173,6.91438329,1626.1,1626.0,3.44247619]
[1745312236572,0.7647,1626.1,1625.8,3.44247619]
[1745312236759,6.15081805,1625.8,1625.6,3.44247619]
[1745312237085,6.15174941,1625.6,1625.4,9.14847619]
[1745312237251,6.15195324,1625.5,1625.4,9.14847619]
[1745312238356,0.7736,1625.5,1625.1,25.984]
[1745312238550,6.15282354,1625.3,1625.2,3.44247619]
[1745312238758,6.15282354,1625.3,1625.1,25.984]
[1745312238759,6.15308885,1625.2,1625.1,5.706]
[1745312239253,6.15308885,1625.2,1625.0,3.44247619]
[1745312242774,0.7736,1625.3,1625.0,3.44247619]
[1745312243376,0.7736,1625.3,1625.0,4.1332694]
[1745312245405,6.8962,1625.5,1625.1,0.55]
[1745312245587,6.8962,1625.5,1625.2,3.44247619]
[1745312245782,6.08,1625.5,1625.3,1.3065]
[1745312246198,0.8162,1625.4,1625.0,0.69079321]
[1745312246507,0.8162,1625.4,1625.2,3.0]
[1745312248709,6.8962,1625.5,1625.2,3.0]
[1745312249413,0.8162,1625.5,1625.2,3.0]
[1745312250176,1.50582,1625.5,1625.2,3.0]
[1745312252984,0.8162,1625.5,1625.2,3.0]
[1745312256024,6.8962,1625.6,1625.2,3.0]
[1745312256219,0.8162,1625.6,1625.2,3.0]
[1745312257707,6.96779671,1625.6,1625.2,3.0]
[1745312262530,0.8162,1625.6,1625.2,3.0]
[1745312264031,2.12094388,1625.6,1625.2,3.0]
[1745312266433,8.27263005,1625.6,1625.2,3.0]
[1745312267325,2.12094388,1625.6,1625.2,3.0]
[1745312269639,6.15268823,1625.4,1624.9,10.3699321]
[1745312269839,0.8307,1625.3,1624.9,10.3699321]
[1745312271947,0.8307,1625.3,1625.0,0.19226998]
[1745312280877,6.08,1625.4,1625.1,3.44247619]
[1745312283958,6.08,1625.4,1625.2,0.19226998]
[1745312284454,7.30319545,1625.4,1625.2,0.19226998]
[1745312284664,0.7973,1625.3,1625.2,0.19226998]
[1745312286840,0.7973,1625.3,1625.0,0.19226998]
[1745312289044,6.95011398,1625.3,1625.0,0.19226998]
[1745312289887,0.7973,1625.3,1625.0,0.19226998]
[1745312290573,1.60734955,1625.3,1625.0,0.19226998]
[1745312292779,7.76019601,1625.3,1625.0,0.19226998]
[1745312293479,6.96506747,1625.1,1625.0,0.19226998]
[1745312294273,13.04506747,1625.1,1625.0,0.19226998]
[1745312295861,6.1540848,1625.0,1624.6,0.19226998]
[1745312296064,8.07400003,1625.0,1624.6,0.19226998]
[1745312296584,8.07400003,1625.0,1624.7,3.44247619]
[1745312298482,13.36592006,1625.1,1624.7,3.44247619]
[1745312298656,7.21245259,1625.1,1624.7,4.22747619]
[1745312298865,7.21245259,1625.1,1624.8,0.19226998]
[1745312299043,6.40085259,1625.1,1624.8,0.19226998]
[1745312299397,6.40085259,1625.1,1624.9,3.44247619]
[1745312299549,1.57626649,1625.1,1624.9,3.44247619]
[1745312300200,0.8116,1625.0,1624.8,0.19226998]
[1745312303523,1.57626649,1625.1,1624.8,0.19226998]
[1745312305067,0.32085259,1625.1,1624.9,4.26517619]
[1745312305273,6.08,1625.3,1624.9,4.26517619]
[1745312305472,6.08,1625.3,1625.1,3.44247619]
[1745312305672,13.05475126,1625.4,1625.1,3.44247619]
[1745312306398,6.9022,1625.4,1625.1,3.44247619]
[1745312306583,8.23971308,1625.4,1625.1,3.44247619]
[1745312307191,14.39205095,1625.4,1625.1,3.44247619]
[1745312307911,14.39205095,1625.4,1625.2,0.19226998]
[1745312310824,7.41751308,1625.4,1625.2,0.19226998]
[1745312312621,6.08,1625.4,1625.2,0.19226998]
[1745312313923,12.5529308,1625.5,1625.2,0.19226998]
[1745312314123,18.7051797,1625.5,1625.2,0.19226998]
[1745312314319,12.5529308,1625.5,1625.2,0.19226998]
[1745312314516,18.7052087,1625.5,1625.2,0.19226998]
[1745312315316,14.50567167,1625.5,1625.2,0.19226998]
[1745312315690,20.65795717,1625.5,1625.2,0.19226998]
[1745312316092,20.65795908,1625.5,1625.2,0.19226998]
[1745312316695,6.1524747,1625.4,1625.2,0.19226998]
[1745312316929,6.9746747,1625.4,1625.2,0.19226998]
[1745312318528,0.8222,1625.4,1625.2,0.19226998]
[1745312319233,15.32793274,1625.5,1625.2,0.19226998]
[1745312319405,6.40083296,1625.5,1625.3,3.44247619]
[1745312319724,6.40083296,1625.5,1625.3,4.26517619]
[1745312322438,6.08,1625.5,1625.3,4.26517619]
[1745312322738,0.8222,1625.7,1625.3,4.26517619]
[1745312322947,0.8222,1625.7,1625.4,0.42651762]
[1745312323099,6.15157719,1625.6,1625.3,4.26517619]
[1745312323538,0.8222,1625.7,1625.3,4.26517619]
[1745312323539,6.97365804,1625.7,1625.3,4.26517619]
[1745312323844,6.92905042,1625.8,1625.3,10.41786759]
[1745312324039,6.92905042,1625.8,1625.5,3.44247619]
[1745312324212,6.1512028,1625.7,1625.5,3.44247619]
[1745312324813,6.1512028,1625.7,1625.3,4.26517619]
[1745312325611,6.92964283,1625.6,1625.3,4.26517619]
[1745312330540,6.15202226,1625.5,1625.3,3.44247619]
[1745312332022,6.92969355,1625.6,1625.3,3.44247619]
[1745312332431,13.08159738,1625.6,1625.3,3.44247619]
[1745312334446,19.16159738,1625.6,1625.3,3.44247619]
[1745312334633,1.91615974,1625.5,1625.3,3.44247619]
[1745312335244,8.06813464,1625.5,1625.3,3.44247619]
[1745312337322,1.91615974,1625.5,1625.3,3.44247619]
[1745312337642,13.00969355,1625.6,1625.3,3.44247619]
[1745312338008,13.33050778,1625.6,1625.3,3.44247619]
[1745312338209,13.33050778,1625.6,1625.3,4.20627619]
[1745312339824,19.48238658,1625.6,1625.3,4.20627619]
[1745312340134,13.33050778,1625.6,1625.3,4.20627619]
[1745312340336,21.56136927,1625.6,1625.3,4.20627619]
[1745312340525,15.40950259,1625.6,1625.3,4.20627619]
[1745312342448,9.25780904,1625.6,1625.3,4.20627619]
[1745312342832,6.40081423,1625.6,1625.3,4.20627619]
[1745312343144,6.40081423,1625.6,1625.5,3.44247619]
[1745312344145,0.32081423,1625.6,1625.5,4.20627619]
[1745312344346,6.1506474,1625.9,1625.5,4.20627619]
[1745312344347,6.1506474,1625.9,1625.5,10.35822781]
[1745312344734,6.47142635,1625.9,1625.5,10.35822781]
[1745312344910,6.47142635,1625.9,1625.5,12.30925069]
[1745312346649,6.47142635,1625.9,1625.5,12.77555759]
[1745312346827,0.32077895,1625.9,1625.5,12.77555759]
[1745312347559,6.47123423,1625.9,1625.5,6.62360597]
[1745312349443,6.47123423,1625.9,1625.5,4.67258309]
[1745312352154,0.32077895,1625.9,1625.5,4.67258309]
[1745312352451,0.32077895,1625.9,1625.5,10.82439349]
[1745312353156,0.32077895,1625.9,1625.5,10.82429158]
[1745312353361,0.32077895,1625.9,1625.7,3.44247619]
[1745312354163,0.32077895,1625.9,1625.8,0.8122]
[1745312362361,0.32077895,1625.9,1625.8,1.85278496]
[1745312362769,0.32077895,1625.9,1625.8,8.55360301]
[1745312365967,13.04204866,1626.3,1625.9,6.15043766]
[1745312366148,0.32073673,1626.2,1625.9,3.44247619]
[1745312367470,6.47007621,1626.2,1625.9,3.44247619]
[1745312369247,6.47007621,1626.2,1626.0,1.51137754]
[1745312370744,0.32073673,1626.2,1626.0,1.51137754]
[1745312371068,0.32073673,1626.2,1626.1,1.51137754]
[1745312385689,0.32073673,1626.2,1626.1,2.31397754]
[1745312387986,1.15019192,1626.5,1626.3,1.51137754]
[1745312389087,0.32069192,1626.5,1626.4,1.51137754]
[1745312390493,6.4769448,1626.6,1626.4,1.51137754]
[1745312390783,6.4769448,1626.6,1626.5,1.51137754]
[1745312392368,6.4769448,1626.6,1626.2,5.655]
[1745312392568,0.8295,1626.5,1626.3,1.51137754]
[1745312393992,0.8295,1626.5,1626.3,2.84293427]
[1745312394704,0.8295,1626.5,1626.4,1.51137754]
[1745312398022,0.8295,1626.5,1626.2,7.16637754]
[1745312398319,6.97785843,1626.5,1626.2,5.655]
[1745312398617,6.97785843,1626.5,1626.2,1.51137754]
[1745312398819,0.69778584,1626.4,1626.2,1.51137754]
[1745312398983,6.9095,1626.5,1626.3,1.51137754]
[1745312399897,13.05772508,1626.5,1626.3,1.51137754]
[1745312400294,6.88304,1626.5,1626.3,1.51137754]
[1745312400499,6.08,1626.5,1626.3,1.51137754]
[1745312400696,6.08,1626.5,1626.4,1.51137754]
[1745312401319,6.08,1626.5,1626.3,3.43675523]
[1745312402411,6.08,1626.5,1626.3,4.19225523]
[1745312403629,6.08,1626.5,1626.3,3.43675523]
[1745312404915,7.37045258,1626.6,1626.3,3.43675523]
[1745312405114,6.54475258,1626.6,1626.3,3.43675523]
[1745312406012,0.32067616,1626.5,1626.3,3.43675523]
[1745312406310,0.32067616,1626.5,1626.3,10.61955777]
[1745312406518,0.32067616,1626.5,1626.4,6.90404894]
[1745312406723,0.32067616,1626.5,1626.4,0.7555]
[1745312407204,0.32067616,1626.5,1626.3,11.37505777]
[1745312408618,0.32067616,1626.5,1626.4,6.14854894]
[1745312408919,0.32067616,1626.5,1626.4,1.75236067]
[1745312410023,0.32067616,1626.5,1626.3,5.22638589]
[1745312410191,7.22932234,1626.5,1626.3,3.43675523]
[1745312411233,1.08097616,1626.5,1626.3,3.43675523]
[1745312412092,0.32067616,1626.5,1626.3,3.43675523]
[1745312412619,0.32067616,1626.5,1626.3,9.58552371]
[1745312412819,0.32067616,1626.5,1626.3,11.91098521]
[1745312413225,0.32067616,1626.5,1626.3,11.91095755]
[1745312413389,0.32067616,1626.5,1626.4,6.69854894]
[1745312413593,0.32067616,1626.5,1626.4,10.51203287]
[1745312413797,0.32067616,1626.5,1626.4,10.45054894]
[1745312414093,0.3969448,1626.6,1626.5,6.69817091]
[1745312414316,0.3969448,1626.6,1626.5,10.13492614]
[1745312419524,0.71757192,1626.6,1626.5,10.13492614]
[1745312424831,0.71757192,1626.6,1626.5,3.98675523]
[1745312425035,0.71757192,1626.6,1626.5,10.13492614]
[1745312425333,0.71757192,1626.6,1626.5,11.1755111]
[1745312426713,7.68458341,1626.6,1626.3,5.654]
[1745312426909,7.68458341,1626.6,1626.3,11.80283816]
[1745312427312,7.68458341,1626.6,1626.4,1.51060848]
[1745312428627,1.53657192,1626.6,1626.4,1.51060848]
[1745312429343,0.71757192,1626.6,1626.5,9.58382898]
[1745312430540,1.53657192,1626.6,1626.4,6.14842548]
[1745312430742,0.71757192,1626.6,1626.4,11.37919797]
[1745312432253,0.71757192,1626.6,1626.4,5.23077249]
[1745312433723,7.68436613,1626.6,1626.3,9.08965807]
[1745312433921,13.83245614,1626.6,1626.3,9.08965807]
[1745312434127,6.14854894,1626.4,1626.3,5.654]
[1745312434429,6.96734845,1626.5,1626.3,5.654]
[1745312434821,7.28801082,1626.5,1626.3,5.654]
[1745312441452,9.27930754,1626.5,1626.3,5.654]
[1745312442532,9.27930754,1626.5,1626.2,3.43565807]
[1745312442739,6.14926568,1626.3,1625.9,3.7653]
[1745312442952,6.14943605,1626.2,1625.9,3.7653]
[1745312443256,6.97483605,1626.2,1625.9,3.0]
[1745312444457,0.8254,1626.2,1625.9,3.0]
[1745312444659,0.8254,1626.2,1625.9,10.97330658]
[1745312444963,0.8254,1626.2,1625.9,11.73860658]
[1745312445340,0.8254,1626.2,1625.9,17.88880467]
[1745312445537,0.8254,1626.2,1625.9,17.88876305]
[1745312446159,0.8254,1626.2,1626.0,6.1500193]
[1745312446323,0.8254,1626.2,1626.0,9.58567737]
[1745312446529,6.97462705,1626.3,1625.9,9.15026676]
[1745312446766,2.66316205,1626.3,1626.0,6.15005941]
[1745312447142,2.66316205,1626.3,1626.0,6.14980504]
[1745312447344,2.66316205,1626.3,1626.0,12.29964797]
[1745312448469,2.66316205,1626.3,1626.0,6.14980504]
[1745312448769,14.96145641,1626.3,1625.9,12.58594021]
[1745312448977,8.81223339,1626.3,1625.9,12.58594021]
[1745312449271,2.66316205,1626.3,1626.0,6.14995337]
[1745312449568,0.8254,1626.3,1626.0,6.14995337]
[1745312450367,0.32070586,1626.2,1626.0,6.14991946]
[1745312450553,0.32070586,1626.2,1626.1,6.14968329]
[1745312450757,0.32070586,1626.2,1626.0,6.14991946]
[1745312451472,0.32070586,1626.2,1626.1,13.35064136]
[1745312451674,0.32070586,1626.2,1626.1,15.3068384]
[1745312452274,0.32070586,1626.2,1626.1,15.8568384]
[1745312454457,0.3969448,1626.6,1626.5,6.14817091]
[1745312454655,0.3969448,1626.6,1626.5,9.58382898]
[1745312455573,0.3969448,1626.6,1626.5,3.43565807]
[1745312455742,0.3969448,1626.6,1626.4,6.14842967]
[1745312457775,0.3969448,1626.6,1626.4,12.76626031]
[1745312458080,0.3969448,1626.6,1626.4,6.61783064]
[1745312458447,0.3969448,1626.6,1626.4,12.76613321]
[1745312459059,0.3969448,1626.6,1626.4,6.61783064]
[1745312459776,0.3969448,1626.6,1626.5,9.58382898]
[1745312460477,0.3969448,1626.6,1626.5,13.13382898]
[1745312460786,0.3969448,1626.6,1626.5,13.92522898]
[1745312461148,6.08,1627.5,1626.5,13.92522898]
[1745312461353,6.90045609,1627.5,1627.1,9.5815111]
[1745312461574,0.32055342,1627.5,1627.3,9.58059578]
[1745312461772,0.32055342,1627.5,1627.3,3.43565807]
[1745312462284,0.3969448,1628.2,1627.8,6.14311508]
[1745312462591,6.538719,1628.2,1627.9,3.43565807]
[1745312462751,0.6538719,1628.1,1627.9,3.43565807]
[1745312462951,6.5389662,1628.2,1627.9,3.43565807]
[1745312463459,6.53893968,1628.2,1627.9,3.43565807]
[1745312464244,0.3969448,1628.2,1627.9,3.43565807]
[1745312464670,6.5387031,1628.2,1627.9,3.43565807]
[1745312465182,0.3969448,1628.2,1627.9,3.43565807]
[1745312465387,7.80674058,1628.2,1627.9,3.43565807]
[1745312466167,1.66497323,1628.2,1627.9,3.43565807]
[1745312466371,6.53884866,1628.2,1627.9,3.43565807]
[1745312466778,6.53884866,1628.2,1627.9,3.90669768]
[1745312466984,6.14215675,1628.1,1627.9,3.90669768]
[1745312467692,0.7559,1628.0,1627.9,0.47103961]
[1745312467895,6.14321777,1627.9,1627.7,3.43565807]
[1745312468095,6.83312955,1627.9,1627.7,3.43565807]
[1745312469076,0.68991178,1627.9,1627.7,3.43565807]
[1745312469865,0.7559,1628.0,1627.7,3.74983162]
[1745312470073,7.35045603,1628.2,1627.7,9.89326502]
[1745312470392,6.14215471,1628.1,1627.7,10.3599325]
[1745312471297,6.14255102,1628.0,1627.7,3.90232555]
[1745312471502,6.14255102,1628.0,1627.7,6.90232555]
[1745312471700,6.14215471,1628.1,1627.7,13.04584144]
[1745312471902,6.87722466,1628.1,1627.7,13.04584144]
[1745312472401,6.87722466,1628.1,1627.7,6.90232555]
[1745312473091,6.14252548,1628.0,1627.7,6.90232555]
[1745312473403,6.87722466,1628.1,1627.7,6.90232555]
[1745312474002,6.14277155,1628.0,1627.7,3.46666748]
[1745312474203,0.8116,1627.9,1627.4,9.06865807]
[1745312474391,0.8116,1627.6,1627.3,3.43565807]
[1745312474595,6.95577285,1627.6,1627.3,3.43565807]
[1745312475187,0.8116,1627.6,1627.3,3.43565807]
[1745312475389,0.8116,1627.6,1627.3,9.88514834]
[1745312476604,0.8116,1627.6,1627.3,9.58054993]
[1745312477114,6.95507272,1627.8,1627.4,6.14474409]
[1745312477279,13.09864772,1627.8,1627.3,10.03639248]
[1745312477685,6.14369785,1627.7,1627.3,10.33826837]
[1745312478180,6.95507272,1627.8,1627.3,10.33826837]
[1745312478387,6.83916262,1627.7,1627.3,10.03639248]
[1745312478787,0.69550727,1627.7,1627.3,10.03639248]
[1745312478988,0.69550727,1627.7,1627.3,16.18129176]
[1745312479177,0.69550727,1627.7,1627.3,10.03639248]
[1745312480104,0.69550727,1627.7,1627.4,6.14474325]
[1745312480310,0.69550727,1627.7,1627.4,6.97504325]
[1745312480610,0.8116,1627.8,1627.5,3.43565807]
[1745312480809,0.8116,1627.8,1627.5,9.5799982]
[1745312481015,0.8116,1627.8,1627.5,3.43565807]
[1745312482178,6.95486951,1627.8,1627.5,3.43565807]
[1745312482610,0.8116,1627.8,1627.5,3.43565807]
[1745312484316,6.9549069,1627.8,1627.5,3.43565807]
[1745312484790,0.8116,1627.8,1627.5,3.43565807]
[1745312485815,12.22262721,1628.0,1627.5,4.77670653]
[1745312485992,0.7653,1627.8,1627.5,3.43565807]
[1745312486399,0.7653,1627.8,1627.5,9.57984294]
[1745312486602,6.9079506,1628.0,1627.6,3.0]
[1745312486807,6.9079506,1628.0,1627.6,9.1439234]
[1745312488426,0.7653,1628.0,1627.7,3.43565807]
[1745312488589,12.98764077,1628.1,1627.7,10.3511284]
[1745312488784,21.08269845,1628.1,1627.7,4.20755807]
[1745312488984,6.14301268,1627.9,1627.6,3.0]
[1745312489195,12.28531273,1628.0,1627.6,3.0]
[1745312489387,6.14251998,1628.0,1627.6,3.0]
[1745312489591,6.14251998,1628.0,1627.6,9.14386955]
[1745312491435,6.8453,1628.1,1627.7,3.43565807]
[1745312491635,12.98753844,1628.1,1627.7,10.35108271]
[1745312491945,12.98753844,1628.1,1627.7,10.35115152]
[1745312493905,0.7653,1628.1,1627.8,6.14313172]
[1745312494337,7.30417227,1628.2,1627.9,3.43565807]
[1745312494622,9.25674221,1628.2,1627.9,3.43565807]
[1745312495327,0.3969448,1628.2,1627.9,9.57842077]
[1745312495524,0.3969448,1628.2,1628.1,3.43565807]
[1745312495842,6.90775755,1628.1,1627.6,4.20755807]
[1745312496003,6.90775755,1628.1,1627.6,10.77206569]
[1745312496187,13.05016778,1628.1,1627.8,3.43565807]
[1745312496519,13.0501533,1628.1,1627.8,3.43565807]
[1745312496686,6.90772447,1628.1,1627.8,3.43565807]
[1745312497228,6.14253218,1628.0,1627.8,3.43565807]
[1745312497593,6.1430023,1627.9,1627.7,3.0]
[1745312497794,6.90875533,1627.8,1627.6,3.43565807]
[1745312497995,13.05229108,1627.8,1627.6,3.43565807]
[1745312498395,6.90875533,1627.8,1627.6,3.43565807]
[1745312498628,0.7653,1627.8,1627.6,3.43565807]
[1745312498922,6.9085656,1627.8,1627.6,3.43565807]
[1745312499521,0.7653,1627.8,1627.6,3.43565807]
[1745312500188,6.95475791,1627.9,1627.6,3.43565807]
[1745312500394,8.3950046,1627.9,1627.6,3.43565807]
[1745312500594,6.95475791,1627.9,1627.6,3.43565807]
[1745312501214,13.09796693,1627.9,1627.6,3.43565807]
[1745312501424,13.0979417,1627.9,1627.6,3.43565807]
[1745312501831,6.14290185,1627.9,1627.6,3.43565807]
[1745312502128,12.28571771,1628.0,1627.6,9.57967346]
[1745312502332,6.14288397,1627.9,1627.6,3.43565807]
[1745312503023,13.03390481,1628.1,1627.8,3.43565807]
[1745312503326,6.14254269,1628.0,1627.8,3.43565807]
[1745312503521,13.03390481,1628.1,1627.8,3.43565807]
[1745312503726,6.142512,1628.0,1627.8,3.43565807]
[1745312504629,13.03390481,1628.1,1627.8,3.43565807]